Cogmind - Beta 16 @@@ ROGUE MODE // 2025.11.10 @ 10:07:05 Player: Mozco Result: Destroyed by G-47 Trooper with Particle Gun Performance ------------- Evolutions (0) 0 Regions Visited (2) 400 Robots Destroyed (15) 75 Value Destroyed (454) 454 Prototype IDs (0) 0 Alien Tech Used (0) 0 Bonus (0) 0 TOTAL SCORE: 929 Bonus ------- None Cogmind --------- Core Integrity 0/250 Matter 285/300 Energy 80/250 System Corruption 0% Temperature Warning (360) Movement Walking (120) Location -10/Mines Parts ------- > --- POWER (1) -------- Ion Engine > --- PROPULSION (2) --- Aluminum Leg Aluminum Leg > --- UTILITY (2) ------ Heat Sink Small Storage Unit > --- WEAPON (2) ------- Particle Gun Beam Cannon > --- INVENTORY (8) ---- Aluminum Leg Aluminum Leg Aluminum Leg Aluminum Leg Improved Terrain Scanner Small Laser Beam Cannon Peak State ------------ > --- POWER ------------ Ion Engine > --- PROPULSION ------- Aluminum Leg Aluminum Leg > --- UTILITY ---------- Small Storage Unit Improved Terrain Scanner > --- WEAPON ----------- Particle Gun Beam Cannon > --- INVENTORY -------- Light Ion Engine Aluminum Leg Aluminum Leg Aluminum Leg Aluminum Leg Heat Sink Small Laser Beam Cannon [Rating: 10] Favorites ----------- Power Ion Engine Engine Ion Engine Propulsion Aluminum Leg Leg Aluminum Leg Utility Small Storage Unit Device Heat Sink Storage Small Storage Unit Weapon Beam Cannon Energy Gun Particle Gun Energy Cannon Beam Cannon Ballistic Gun Assault Rifle Build | -11 -10 -10 ------- Run | Yrd Mat Min Slots Evolved . | . . . Power . | . . . Propulsion . | . . . Utility . | . . . Weapon . | . . . Parts Attached 23 | 5 11 7 Power 5 | 1 3 1 Engine 5 | 1 3 1 Core . | . . . Reactor . | . . . Propulsion 10 | 2 4 4 Treads . | . . . Leg 10 | 2 4 4 Wheel . | . . . Hover . | . . . Flight . | . . . Utility 4 | 1 2 1 Device 3 | . 2 1 Storage 1 | 1 . . Processor . | . . . Hackware . | . . . Protection . | . . . Artifact . | . . . Weapon 4 | 1 2 1 Energy Gun 2 | 1 . 1 Energy Cannon 1 | . 1 . Ballistic Gun 1 | . 1 . Ballistic Cannon . | . . . Launcher . | . . . Special Weapon . | . . . Impact Weapon . | . . . Slashing Weapon . | . . . Piercing Weapon . | . . . Special Melee Weapon . | . . . Unidentified Prototypes . | . . . Parts Lost 2 | . 1 1 Power 2 | . 1 1 Propulsion . | . . . Utility . | . . . Weapon . | . . . Highest Loss Streak 1 | . 1 1 To Critical Strikes . | . . . Average Backups 7 | 1 6 8 Power . | . . 1 Propulsion 3 | . 2 4 Utility . | . . . Weapon 2 | . 3 2 Tool/Special . | . . . Unused Backups 8 | . 2 6 Power . | . . . Propulsion 5 | . 1 4 Utility 1 | . 1 . Weapon 2 | . . 2 Tool/Special . | . . . Average Slot Usage (%) 95 | . 87 100 Engine 13 | . 12 14 Leg 28 | . 28 28 Device 11 | . 7 14 Storage 14 | . 14 14 Energy Gun 5 | . 4 5 Energy Cannon 12 | . 9 14 Ballistic Gun 8 | . 9 8 Peak Build Rating 10 | 5 7 10 Average Rating 7 | 4 6 8 On Entrance 4 | . 5 7 Avg Prop Armor Cover (%) . | . . . Naked Turns . | . . . Heaviest Build 17 | 9 16 17 Greatest Support 20 | 20 20 20 Greatest Overweight (x) . | . . . Average Overweight (x) . | . . . Largest Inventory Capacity 8 | 8 8 8 Average Capacity 7 | 7 8 8 Most Carried 8 | 3 8 8 Average Carried 7 | 1 6 8 Final Capacity 8 | 8 8 8 Final Carried 8 | 3 8 7 Class Distribution -------------------- 80% | Scavenger-Mutant 20% | Mutant Dominant Class ---------------- Scavenger-Mutant | -10/Materials Scavenger-Mutant | -10/Mines Resources | -11 -10 -10 ----------- Run | Yrd Mat Min Matter Collected 536 | 204 222 110 Remotely . | . . . Salvage Created 567 | . 338 229 Parts 33 | . 19 14 Haulers Intercepted . | . . . Recyclers Shooed . | . . . Parts Field Recycled . | . . . Retrieved Matter . | . . . Parts Self-Destructed . | . . . Prevented . | . . . Parts Restored . | . . . Kills | -11 -10 -10 ------- Run | Yrd Mat Min Combat Hostiles Destroyed 12 | . 9 3 Guns 7 | . 5 2 Cannons 5 | . 4 1 Classes Destroyed 5 | . 1 4 Worker 1 | . . 1 Tunneler 1 | . . 1 Recycler 1 | . . 1 Grunt 11 | . 9 2 Demolisher 1 | . . 1 Best Kill Streak 6 | . 6 2 Combat Bots Only 6 | . 6 2 Max Kills in Single Turn 1 | . 1 1 Gunslinging . | . . . Exploded . | . . . Melee . | . . . Uniques/NPCs Destroyed . | . . . Combat | -11 -10 -10 -------- Run | Yrd Mat Min Hostile Shots Fired 92 | . 54 38 Missed 28 | . 18 10 Hits 64 | . 36 28 Projectile 64 | . 36 28 AOE 9 | . . 9 Damage Taken 974 | . 394 580 Core 253 | . 69 184 Absorbed by Shields . | . . . Core Remaining (%) 100 | 100 . . Volleys Fired 47 | . 32 15 Largest 2 | . 2 2 Hottest 125 | . 80 125 Shots Fired 88 | . 58 30 Gun 47 | . 32 15 Cannon 41 | . 26 15 Launcher . | . . . Special . | . . . Kinetic 41 | . 32 9 Thermal 47 | . 26 21 Explosive . | . . . Electromagnetic . | . . . Robot Hit Streak 12 | . 9 12 Robot Miss Streak 3 | . 3 1 Penetration Max . | . . . Secondary Targets . | . . . Shots Hit Robots 60 | . 40 20 Core Hits 26 | . 16 10 Critical Kills 1 | . . 1 Critical Parts Destroyed . | . . . Critical Strikes 1 | . . 1 Meltdown 1 | . . 1 Melee Attacks . | . . . Impact . | . . . Slashing . | . . . Piercing . | . . . Sneak Attacks . | . . . Combat Hostiles . | . . . Follow-up Attacks . | . . . Damage Inflicted 937 | 2 610 325 Guns 376 | . 294 82 Cannons 559 | . 316 243 Explosions . | . . . Melee . | . . . Ramming 2 | 2 . . Kinetic 345 | . 294 51 Thermal 590 | . 316 274 Explosive . | . . . Electromagnetic . | . . . Impact . | . . . Slashing . | . . . Piercing . | . . . Highest Corruption . | . . . Average Corruption . | . . . Corruption Purged . | . . . Corruption Blocked . | . . . Overload Shots . | . . . Overflow Damage . | . . . Projectiles . | . . . Explosions . | . . . Melee . | . . . Knockbacks . | . . . Impact . | . . . Kinetic . | . . . Secondary . | . . . Self-Inflicted Damage . | . . . Shots . | . . . Rammed . | . . . Targets Rammed 1 | 1 . . Kicked 1 | 1 . . Crushed . | . . . Highest Temperature 376 | . 258 376 Average Temperature 107 | . 96 123 Received Heat Transfer 375 | . 216 159 Effects 2 | . 1 1 Shutdowns 1 | . . 1 Interference 1 | . 1 . Siege Activations . | . . . Martial Activations . | . . . Shielding Activations . | . . . Robots Disrupted . | . . . Combat Hostiles . | . . . Robots Corrupted . | . . . Combat Hostiles . | . . . Parts Fried . | . . . Impact Corruptions . | . . . Robots Melted 1 | . . 1 Combat Hostiles . | . . . Parts Melted 1 | . . 1 Heat Transferred 1258 | . 666 592 Parts Sabotaged . | . . . Parts Stolen . | . . . Parts Stripped . | . . . Power Chain Reactions . | . . . Alert | -11 -10 -10 ------- Run | Yrd Mat Min Maximum Alert Level . | . . . Low Security (%) 100 | 100 100 100 Level 1 . | . . . Level 2 . | . . . Level 3 . | . . . Level 4 . | . . . Level 5 . | . . . High Security . | . . . Max Security . | . . . Peak Influence 146 | . 146 40 Initial 33 | . . 33 Average 28 | . 77 5 Influence Increases 331 | . 246 85 Destroy 0b10 Robot/C 240 | . 180 60 Destroy 0b10 Robot/NC 15 | . . 15 Destroy Leader 40 | . 30 10 Successful Hack 5 | . 5 . Select Force Hacks 30 | . 30 . Destroy Structure 1 | . 1 . Influence Decreases 321 | . 160 161 Entered New Map 53 | . . 53 Time Decay 248 | . 150 98 Lost Part 20 | . 10 10 Squads Dispatched 3 | . 3 . Investigation 3 | . 3 . Extermination . | . . . Reinforcement . | . . . Assault . | . . . Garrison . | . . . Intercept . | . . . Searches Triggered . | . . . Construction Impeded . | . . . Haulers Reinforced . | . . . Active Scanning Responses . | . . . Cargo Convoy Interrupts . | . . . Stealth | -11 -10 -10 --------- Run | Yrd Mat Min Distress Signals . | . . . Communications Jammed . | . . . Distress Signals . | . . . Times Spotted 18 | . 12 6 Peak Tracking Total 4 | . 4 3 Tactical Retreats . | . . . Traps | -11 -10 -10 ------- Run | Yrd Mat Min Traps Triggered 1 | . 1 . Indirectly . | . . . Trap Hack Attempts . | . . . Triggered . | . . . Disarmed . | . . . Reprogrammed . | . . . Reused . | . . . Traps Extracted . | . . . Installed . | . . . Triggered . | . . . Machines | -11 -10 -10 ---------- Run | Yrd Mat Min Machines Disabled . | . . . Max in Single Turn . | . . . Machines Repaired . | . . . Machines Dismantled . | . . . Machines Sabotaged . | . . . Overloaded Fab Kills . | . . . Hacking | -11 -10 -10 --------- Run | Yrd Mat Min Machines Accessed 3 | . 3 . Terminals 2 | . 2 . Fabricators . | . . . Repair Stations . | . . . Recycling Units 1 | . 1 . Scanalyzers . | . . . Garrison Access . | . . . Total Hacks 9 | . 9 . Successful 3 | . 3 . Failed 6 | . 6 . Catastrophic . | . . . Database Lockouts . | . . . Manual 6 | . 6 . Terminals 8 | . 8 . Fabricators . | . . . Repair Stations . | . . . Recycling Units 1 | . 1 . Scanalyzers . | . . . Garrison Access . | . . . Terminal Hacks 1 | . 1 . Zone Layout 1 | . 1 . Fabricator Hacks . | . . . Repair Station Hacks . | . . . Recycling Unit Hacks . | . . . Scanalyzer . | . . . Garrison Access Hacks . | . . . Unauthorized Hacks 2 | . 2 . Terminals 1 | . 1 . Botnet 1 | . 1 . Fabricators . | . . . Repair Stations . | . . . Recycling Units 1 | . 1 . Tunnel 1 | . 1 . Scanalyzers . | . . . Garrison Access . | . . . Data Cores Recovered . | . . . Used . | . . . Hacking Detections 2 | . 2 . Full Trace Events 1 | . 1 . Feedback Events . | . . . Feedback Blocked . | . . . Robot Schematics Acquired . | . . . Robots Built . | . . . Authchips . | . . . Time . | . . . Total Robot Build Rating . | . . . Part Schematics Acquired . | . . . Parts Built . | . . . Authchips . | . . . Time . | . . . Total Part Build Rating . | . . . Part Studies Acquired . | . . . Parts Repaired . | . . . Time . | . . . Parts Recycled . | . . . Recycled Matter . | . . . Retrieved Matter . | . . . Retrieved Components . | . . . Parts Scanalyzed . | . . . Part Schematics Acquired . | . . . Parts Damaged . | . . . Bothacking | -11 -10 -10 ------------ Run | Yrd Mat Min Used RIF Installer . | . . . Robots Hacked . | . . . Non-combat . | . . . Combat . | . . . Robot Hacks Applied . | . . . Relay Couplers Released . | . . . Fabnet Peak Effective % . | . . . Robots Rewired . | . . . Allies Hacked . | . . . Hacks Repelled . | . . . Allies | -11 -10 -10 -------- Run | Yrd Mat Min Total Allies . | . . . Largest Group . | . . . Highest-Rated Group . | . . . Highest-Rated Ally . | . . . Total Orders . | . . . Ally Attacks . | . . . Total Damage . | . . . Kills . | . . . Allies Corrupted . | . . . Allies Melted . | . . . Intel | -11 -10 -10 ------- Run | Yrd Mat Min Active Infowar (turns) 329 | . . 329 Terrain 329 | . . 329 Robot Analysis Total . | . . . Derelict Logs Recovered 1 | . . 1 Drone Launches . | . . . Drone Recoveries . | . . . Exploration | -11 -10 -10 ------------- Run | Yrd Mat Min Turns Passed 1094 | 75 360 659 Spaces Moved 755 | 52 202 501 Core 3 | 3 . . Treads . | . . . Legs 752 | 49 202 501 Wheels . | . . . Hover . | . . . Flight . | . . . Fastest Speed 50 | 50 120 120 Average Speed 119 | 115 120 120 Slowest Speed 120 | 120 120 120 Overloaded Moves . | . . . Propulsion Burnouts . | . . . Robots Hopped . | . . . Potential Cave-ins . | . . . Cave-ins Triggered . | . . . Exploration Rate (%) 44 | 3 37 92 Regions Visited 2 Branch Regions 1 Pre-discovered Areas 1 | . 1 . Known Exits Taken . | . . . Unknown Exits Taken 2 | 1 1 . Scrap Searched 1 | . . 1 Spaces Dug . | . . . Terrain Destroyed . | . . . Melee . | . . . Projectile . | . . . AOE . | . . . Terrain Rammed . | . . . Walls Destroyed . | . . . Machines Disabled . | . . . Actions | -11 -10 -10 --------- Run | Yrd Mat Min Total 862 | 64 265 533 Wait 9 | 4 5 . Move 753 | 51 201 501 Hop . | . . . Pick Up 13 | 3 8 2 Fast Attach 7 | 5 1 1 Attach 3 | . 2 1 Detach . | . . . Swap 14 | . 8 6 Drop 15 | . 8 7 Fire 47 | . 32 15 Melee . | . . . Ram . | . . . Kick 1 | 1 . . Crush . | . . . Escape Stasis . | . . . Rewire . | . . . Trap . | . . . Miscellaneous . | . . . Route ------- -11/Scrapyard -10/Materials (discovered 2 exits: [*Mat] / [*Min]) -10/Mines (discovered 2 exits: [*Mat x2]) History --------- Turn | Location | Event 8 | -11/Scrapyard | Discovered new exit (range 16) 76 | -11/Scrapyard | Entered Materials 364 | -10/Materials | Discovered new exit (range 5) 430 | -10/Materials | Discovered new exit (range 5) 436 | -10/Materials | Entered Mines 459 | -10/Mines | Assembled infested the area 526 | -10/Mines | Build established: Scavenger-Mutant 579 | -10/Mines | Discovered new exit (range 9) 637 | -10/Mines | Learned Materials emergency access door positions 838 | -10/Mines | Found a hidden stash of uninstalled traps 856 | -10/Mines | Discovered new exit (range 13) 1076 | -10/Mines | Core integrity fell below 50% 1081 | -10/Mines | Core integrity fell below 20% 1095 | -10/Mines | Destroyed by G-47 Trooper with Particle Gun Last Messages --------------- 01032_ K-01 Serf cleans the Matter Pump. 01070_ K-01 Serf collects debris. 01075_ C-45 Heavy ARC bursts open, deploying its payload. 01075_ D-53 Grenadier unfolds itself. 01075_ Plasma Injector explodes. 01075_ K-01 Serf destroyed. 01081_ D-53 Grenadier destroyed. 01082_ K-01 Serf collects debris. 01082_ D-53 Grenadier destroyed. 01082_ T-07 Excavator destroyed. 01085_ K-01 Serf collects debris. 01086_ U-05 Engineer builds a Wall. 01087_ The unstable cave ceiling collapses. 01087_ K-01 Serf collects debris. 01088_ The unstable cave ceiling collapses. 01089_ Power failure, Ion Engine shutdown. 01090_ K-01 Serf collects debris. 01091_ U-05 Engineer builds a Wall. 01093_ K-01 Serf collects debris. 01093_ Ion Engine destroyed. Map ----- +----------------------------------------------------+ | | | | | | | ??????????????????????????????????##?????????????? | | ??????????????????????######?????????#???????????? | | ????????????????#????## ##???#??#?????#######?? | | ???????????????####### #????#???????## ##? | | ??????????????## ## #??#??#??????# ## | | ??????????????# ##????#??????# # | | ??????????????# ######??#???# | | ??????????????# ## ##?#???## | | #?????????????## #### """ #????## | | ##?????????????#### ##?# """ #????## ### | | #????????????????## #?# """ ####?## ##??## | | #?????????????#???# #?## #??### ###????? | | #???#?????????????## ##??## #?## ##?#####? | | #??????????????????####????## #### #### ## | | #?????????????????????????#?## ##?# ### | | ######?????? ????#??? ???????# #??# ### | | ????????#?#?##### ##?# #### | | #######???????????#??###### ##?# ##?# | | ???????????????????# ## ####### #### ##### | | ??????????????????## # # ### #???? | | ?????????????????? # ## # # ####### #???# | | ?????????????????#?#u# ###???## ##?#?? | | ?????????####??????# k= @ #????###????? | | ?????#### #??????# ## #?#??##????#? | | ????# #?????## ### #?#??#??????? | | ???# ???????## ## #???#?######? | | ???# ????#?????## g #### ##?#?## ## | | ??## ?????????????##;;; ; ##### ###?## < # | | ### #????????????????##### g #?#?# # | | ## #????????????????#????# #########?#?# # | | #????????????????????## #?#??#?#?????# # | | #????????????????#?##?# #??#?###?????## | | # #??####????????#??#???# ###????#?????## | | ## #### #####???????##### ##??#??????## | | ?# ## #??????## ##???#????# | | ?# # #??#????# ## ##???##??# | | ?# ## #???????#[## ###?????## | | ## ### #?????#?#=### ######?#?## ## | | # #### #?????#?#%#?## =% ###### #### | | # #### ##??????# #??#########=[==* #??## | | ## ####?# ##?????#*#??????????# ########???# | | ?## #???## #?????#%#?#???###### #??????????? | | ### #??## ##?????#!#?????## ###????????? | | ## #?## < #??????#=#???### ##?????##? | | ## ### ##?????#=#????# #?????#?? | | ## ## """ ####### ###### ##????#?? | | ## """ ## ####????? | +----------------------------------------------------+ Best States ------------- Heat Dissipation 35 Energy Generation 10 Energy Capacity 250 Matter Stores 300 Matter Capacity 300 Sight Range 16 Terrain Scan Range 16 Terrain Scan Density 10 Evasion (%) 55 Item Schematics ----------------- None Robot Schematics ------------------ None Fabricated ------------ Nothing Repaired ---------- Nothing Studied --------- None Alien Tech Used ----------------- None Achievements -------------- None Challenges ------------ None Game ------ Seed DisassembledWeldingBarrier Manual? 0 Play Time 00:08:48 Cumulative 241.9 hours Start 2025.11.10 @ 09:56:13 End 2025.11.10 @ 10:07:05 Sessions 1 Manual Loads 0 Difficulty Rogue Special Mode None Game No. 247 Rogue 243 Adventurer 3 Explorer 1 Win Type - Total 1 Types 1/0/0/0/0/0/0/0/0/0 Lore% 74 Gallery% 74 Achievement% 58 Wizard Run 0 Options --------- Layout 0 ASCII 0 Keyboard 0 Movement Mouse Keybinds 0 Fullscreen 2 Font 18/SmallcapsGlow Map View 76x50 Zoom Use 0% Tactical HUD 1 Map Filters NONE Filters NONE Steam 1 RUN: 2b7d36f1-0e56-4138-b763-f45a705b6462